Workbook

Sheet 1
E1: Приложение 1 к Постановлению № 13 от 03.11. 2023 г « Об исполнении бюджета сельской администрации МО Каспинское сельское поселение за 3 квартал 2023 года."
A2: Объем поступлений доходов в бюджет муниципального образования Каспинское сельское поселение за 3 квартал 2023 году
A3: Код главы администратора* | B3: Код бюджетной классификации Российской Федерации | C3: Наименование доходов | D3: Изменения (+;-) | E3: Утверждено, сумма (тыс.рублей) | F3: Исполнено, сумма (тыс.рублей) | G3: Неисполненные назначение сумма (тыс.рублей)
A4: 1 | B4: 2 | C4: 3 | D4: 4 | E4: 5
A5: 182 | B5: 1 00 00000 00 0000 000 | C5: НАЛОГОВЫЕ И НЕНАЛОГОВЫЕ ДОХОДЫ | D5: =D6+D15 ->  | E5: =E6+E15 -> 275.50 | F5: =F6+F15 -> 56.12 | G5: =E5-F5 -> 219
C6: НАЛОГОВЫЕ ДОХОДЫ | D6: =D7+D8+D10 -> 42.1 | E6: =E7+E8+E10 -> 272.50 | F6: =F7+F8+F10 -> 56.12 | G6: =E6-F6 -> 216
A7: 182 | B7: 1 01 02000 01 0000 110 | C7: Налог на доходы физических лиц | D7: 12.0 | E7: 20.00 | F7: 20.51 | G7: -1
A8: 182 | B8: 1 05 00000 00 0000 000 | C8: Налоги на совокупный доход | D8: =D9 -> -1.2 | E8: =E9 -> 7.50 | F8: =F9 -> 6.35 | G8: 1
A9: 182 | B9: 1 05 03000 01 0000 110 | C9: Единый сельскохозяйственный налог | D9: -1.2 | E9: 7.50 | F9: 6.35 | G9: 1
A10: 182 | B10: 1 06 00000 00 0000 000 | C10: Налоги на имущество | D10: =D11+D14 -> 31.3 | E10: =E11+E12 -> 245.00 | F10: =F11+F12 -> 29.26 | G10: 216
A11: 182 | B11: 1 06 01000 00 0000 110 | C11: Налог на имущество физических лиц | D11: -8.7 | E11: 42.00 | F11: 1.67 | G11: 40
A12: 182 | B12: 1 06 06000 00 0000 110 | C12: Земельный налог | D12: 40.0 | E12: =E13+E14 -> 203.00 | F12: =F13+F14 -> 27.59 | G12: 175
A13: 182 | B13: 1 06 06033 10 1000 110 | C13: Земельный налог с организаций | E13: 50.00 | F13: 16.88 | G13: 33
A14: 182 | B14: 1 06 06043 10 1000 110 | C14: Земельный налог с физических лиц | D14: 40.0 | E14: 153.00 | F14: 10.71 | G14: 142
C15: НЕНАЛОГОВЫЕ ДОХОДЫ | D15: =#REF! ->  | E15: =E16 -> 3.00 | F15: =F16 -> 0.00 | G15: 3
A16: 801 | B16: 1 16 02020 02 0000 140 | C16: Административные штрафы, установленные законами субъектов Российской Федерации об административных правонарушениях, за нарушение муниципальных правовых актов | E16: 3.00
A17: 801 | B17: 2 00 00000 00 0000 000 | C17: Безвозмездные поступления | D17: =D18 -> 0.0 | E17: =E18+E25 -> 3475.67 | F17: =F18+F25 -> 2650.71 | G17: 825
A18: 801 | B18: 2 02 00000 00 0000 000 | C18: Безвозмездные поступления от других бюджетов бюджетной системы Российской Федерации | D18: 0.0 | E18: =E19 -> 3485.63 | F18: =F19 -> 2660.67 | G18: 825
A19: 801 | B19: 2 02 00000 00 0000 000 | C19: Безвозмездные поступления от других бюджетов бюджетной системы Российской Федерации | E19: =E20+E21+E22+E23+E24 -> 3485.63 | F19: =F20+F21+F22+F23+F24 -> 2660.67 | G19: 825
A20: 801 | B20: 2 02 15001 10 0000 150 | C20: Дотации бюджетам субъектов Российской Федерации и муниципальных образований | E20: 1313.90 | F20: 1059.47 | G20: 254
A21: 801 | B21: 2 02 35118 10 0000 150 | C21: Субвенции бюджетам сельских поселений на выполнение передаваемых полномочий субъектов Российской Федерации | E21: 5.80 | F21: 5.80 | G21: 0
A22: 801 | B22: 2 02 03000 00 0000 151 | C22: Субвенции бюджетам субъектов Российской Федерации и муниципальных образований | D22: 2.3 | E22: 82.40 | F22: 65.04 | G22: 17
A23: 801 | B23: 2 02 04014 10 0000 151 | C23: Межбюджетные трансферты, передаваемые бюджетам муниципальных образований на осуществление части полномочий по решению вопросов местного значения | D23: -45.8 | E23: 1435.63 | F23: 1101.09 | G23: 335
A24: 801 | B24: 2 02 04999 10 0000 151 | C24: Прочие межбюджетные трансферты, передаваемые бюджетам сельских поселений | D24: 45.8 | E24: 647.90 | F24: 429.28 | G24: 219
A25: 801 | B25: 2 19 60010 10 0000 150 | C25: Возврат прочих остатков субсидий, субвенций и иных межбюджетных трансфертов, имеющих целевое назначение, прошлых лет из бюджетов сельских поселений | E25: -9.96 | F25: -9.96 | G25: 0
C26: Всего доходов | D26: =D5+D17 ->  | E26: =E5+E17 -> 3751.17 | F26: =F5+F17 -> 2706.83 | G26: =E26-F26 -> 1044

Sheet 2
B1: Приложение 2 к Постановлению № 13 от 03.11.2023 г « Об исполнении бюджета сельской администрации МО Каспинское сельское поселение за 3 квартал 2023 года."
A3: Распределение бюджетных ассигнований по разделам, подразделам классификации расходов бюджета муниципального образования Каспинское сельское поселение за 3 квартал 2023 год
A5: Наименование показателя | B5: Раздел, подраздел | C5: Изменения (+;-) | D5: Утверждено, (тыс.руб.) | E5: Исполнено, (тыс.руб.) | F5: Неисполненные назначение сумма (тыс.руб.)
A6: ОБЩЕГОСУДАРСТВЕННЫЕ ВОПРОСЫ | B6: 0100 | C6: =SUM(C7:C8) -> 130.8 | D6: =SUM(D7:D11) -> 2259.13 | E6: =SUM(E7:E11) -> 1440.17 | F6: =D6-E6 -> 819.0
A7: Функционирование высшего должностного лица субъекта Российской Федерации и муниципального образования | B7: 0102 | C7: -38.0 | D7: ='3'!G7 -> 364.00 | E7: ='3'!H7 -> 247.90 | F7: =D7-E7 -> 116.1
A8: Функционирование Правительства Российской Федерации, высших исполнительных органов государственной власти субъектов Российской Федерации, местных администраций | B8: 0104 | C8: 168.8 | D8: ='3'!G10 -> 1617.98 | E8: ='3'!H10 -> 981.55 | F8: 636.4
A9: Резервные фонды | B9: 0111 | D9: 15.00 | F9: 15.0
A10: Выборы | B10: 0107 | D10: ='3'!G18 -> 36.05 | E10: ='3'!H18 -> 28.15
A11: ДРУГИЕ ОБЩЕГОСУДАРСТВЕННЫЕ РАСХОДЫ | B11: 0113 | D11: ='3'!G29 -> 226.10 | E11: ='3'!H29 -> 182.57 | F11: 43.5
A12: НАЦИОНАЛЬНАЯ ОБОРОНА | B12: 0200 | C12: =C13 -> 50.5 | D12: =D13 -> 82.40 | E12: =E13 -> 65.04 | F12: 17.4
A13: Мобилизационная и вневойсковая подготовка | B13: 0203 | C13: 50.5 | D13: ='3'!G41 -> 82.40 | E13: ='3'!H41 -> 65.04 | F13: 17.4
A14: НАЦИОНАЛЬНАЯ ЭКОНОМИКА | B14: 0400 | D14: =D15+D16 -> 1335.70 | E14: =E15 -> 471.06 | F14: 864.6
A15: Дорожное хозяйство (дорожные фонды) | B15: 0409 | D15: ='3'!G45 -> 1335.70 | E15: ='3'!H44 -> 471.06 | F15: 864.6
A16: Другие вопросы в области национальной экономики | B16: 0412 | F16: 0.0
A17: ЖИЛИЩНО-КОММУНАЛЬНОЕ ХОЗЯЙСТВО | B17: 0500 | D17: =D19+D18 -> 108.90 | E17: =E18+E19 -> 30.96 | F17: 77.9
A18: Коммунальное хозяйство | B18: 0502 | D18: ='3'!G49 -> 97.70 | E18: ='3'!H49 -> 19.83 | F18: 77.9
A19: БЛАГОУСТРОЙСТВО | B19: 0503 | D19: ='3'!G52 -> 11.20 | E19: ='3'!H52 -> 11.13 | F19: 0.1
A20: ВСЕГО РАСХОДОВ | C20: =C6+#REF!+#REF!+C12+C14 ->  | D20: =D6+D12+D14+D17 -> 3786.12 | E20: =E6+E12+E14+E17 -> 2007.23 | F20: 1778.9

Sheet 3
C1: Приложение 3 к Постановлению № 13 от 03.11.2023 г « Об исполнении бюджета сельской администрации МО Каспинское сельское поселение за 3 квартал 2023 года."
A2: Ведомственная структура расходов бюджета муниципального образования Каспинское сельское поселение за 3 квартал 2023 год
H3: (тыс. рублей)
A4: Наименование главного распорядителя | B4: Гл | C4: Рз | D4: ПР | E4: ЦСР | F4: ВР | G4: Утверждено, (тыс.руб.) | H4: Исполнено, (тыс.руб.) | I4: Неисполненные назначение сумма (тыс.руб.)
A5: 1 | B5: 2 | C5: 3 | D5: 4 | E5: 5 | F5: 6 | G5: 7 | H5: 8 | I5: 9
A6: ОБЩЕГОСУДАРСТВЕННЫЕ ВОПРОСЫ | B6: 801 | C6: 01 | D6: 00 | G6: =G7+G10+G17+G19+G29 -> 2259.13 | H6: =H7+H10+H17+H19+H29 -> 1440.17 | I6: =G6-H6 -> 819.0
A7: Функционирование высшего должностного лица субьекта Российской Федерации и муниципального образования | B7: 801 | C7: 01 | D7: 02 | G7: =G8 -> 364.00 | H7: =H8 -> 247.90 | I7: =G7-H7 -> 116.1
A8: Обеспечение деятельности высшего должностного лица | B8: 801 | C8: 01 | D8: 02 | E8: 99 0 Л0 10100 | G8: =G9 -> 364.00 | H8: 247.90 | I8: 116.1
A9: Расходы на выплаты персоналу в целях обеспечения выполнения функций государственными (муниципальными) органами, казенными учреждениями, органами управления государственными внебюджетными фондами | B9: 801 | C9: 01 | D9: 02 | E9: 99 0 Л0 10100 | F9: 100 | G9: 364.00 | H9: 247.90 | I9: 116.1
A10: Функционирование Правительства Российской Федерации, высших исполнительных органов государственной власти субъектов Российской Федерации, местных администрации | B10: 801 | C10: 01 | D10: 04 | G10: =G11+G14 -> 1617.98 | H10: =H11+H14 -> 981.55 | I10: 636.4
A11: Основное мероприятие "Формирование эффективной системы управления и распоряжения муниципальными финансами" | B11: 801 | C11: 01 | D11: 04 | E11: 01 2 01 00000 | G11: =G12+G13 -> 67.64 | H11: =H12+H13 -> 33.00 | I11: 34.6
A12: Иные межбюджетные трансферты | B12: 801 | C12: 01 | D12: 04 | E12: 01 2 01 01100 | F12: 500 | G12: 34.64 | H12: 0.00 | I12: =G12-H12 -> 34.6
A13: Уплата налогов, сборов и иных платежей | B13: 801 | C13: 01 | D13: 04 | E13: 01 2 01 10200 | F13: 800 | G13: 33.00 | H13: 33.00 | I13: =G13-H13 -> 0.0
A14: Основное мероприятие "Повышение эффективности муниципального управления" | B14: 801 | C14: 01 | D14: 04 | E14: 01 3 01 00000 | G14: =G15+G16 -> 1550.34 | H14: =H15+H16 -> 948.55 | I14: 601.8
A15: Расходы на выплаты персоналу в целях обеспечения выполнения функций государственными (муниципальными) органами, казенными учреждениями, органами управления государственными внебюджетными фондами | B15: 801 | C15: 01 | D15: 04 | E15: 01 3 У1 80110 | F15: 100 | G15: 925.44 | H15: 597.10 | I15: 328.3
A16: Расходы на выплаты персоналу в целях обеспечения выполнения функций государственными (муниципальными) органами, казенными учреждениями, органами управления государственными внебюджетными фондами | B16: 801 | C16: 01 | D16: 04 | E16: 01 3 У1 S8500 | F16: 100 | G16: 624.90 | H16: 351.45 | I16: 273.5
A17: Выборы | B17: 801 | C17: 01 | D17: 07 | E17: 99 0 00 Я0995 | G17: =G18 -> 36.05 | H17: =H18 -> 28.15 | I17: 7.9
A18: Специальные расходы | B18: 801 | C18: 01 | D18: 07 | E18: 99 0 00 Я0995 | F18: 880 | G18: 36.05 | H18: 28.15 | I18: 7.9
A19: РЕЗЕРВНЫЕ ФОНДЫ | B19: 801 | C19: 01 | D19: 11 | G19: =G20+G23+G26 -> 15.00 | I19: 15.0
A20: Основное мероприятие "Обеспечение первичных мер пожарной безопасности в границах поселений" | B20: 801 | C20: 01 | D20: 11 | E20: 02 2 01 Ш1000 | G20: =G21 -> 5.00 | I20: 5.0
A21: Обеспечение первичных мер пожарной безопасности | B21: 801 | C21: 01 | D21: 11 | E21: 02 2 01 Ш1000 | G21: =G22 -> 5.00 | I21: 5.0
A22: Иные бюджетные ассигнования | B22: 801 | C22: 01 | D22: 11 | E22: 02 2 01 Ш1000 | F22: 800 | G22: 5.00 | I22: 5.0
A23: Основное мероприятие "Профилактика терроризма и экстремизма в границах поселения" | B23: 801 | C23: 01 | D23: 11 | E23: 02 2 02 Ш2000 | G23: =G24 -> 5.00 | I23: 5.0
A24: Совершенствование системы информационно-пропагандистского противодействия терроризму и экстремизму | B24: 801 | C24: 01 | D24: 11 | E24: 02 2 02 Ш2000 | G24: =G25 -> 5.00 | I24: 5.0
A25: Иные бюджетные ассигнования | B25: 801 | C25: 01 | D25: 11 | E25: 02 2 02 Ш2000 | F25: 800 | G25: 5.00 | I25: 5.0
A26: Основное мероприятие "Предупреждение и ликвидация последствий чрезвычайных ситуаций в границах поселения" | B26: 801 | C26: 01 | D26: 11 | E26: 02 2 03 Ш3000 | G26: =G27 -> 5.00 | I26: 5.0
A27: Обеспечение наличия запасов резервов финансовых и материальных ресурсов для ликвидации ЧС | B27: 801 | C27: 01 | D27: 11 | E27: 02 2 03 Ш3000 | G27: =G28 -> 5.00 | I27: 5.0
A28: Иные бюджетные ассигнования | B28: 801 | C28: 01 | D28: 11 | E28: 02 2 03 Ш3000 | F28: 800 | G28: 5.00 | I28: 5.0
A29: ДРУГИЕ ОБЩЕГОСУДАРСТВЕННЫЕ ВОПРОСЫ | B29: 801 | C29: 01 | D29: 13 | G29: =G30+G32+G37+G39 -> 226.10 | H29: =H30+H32+H37+H39 -> 182.57 | I29: 43.5
A30: Основное мероприятие "Развитие культурно-досуговой деятельности" | B30: 801 | C30: 01 | D30: 13 | E30: 01 1 01 00000 | G30: =G31 -> 5.80 | I30: 5.8
A31: Закупка товаров, работ и услуг для обеспечения государственных (муниципальных) нужд | B31: 801 | C31: 01 | D31: 13 | E31: 01 1 01 01200 | F31: 200 | G31: 5.80 | H31: 0.00 | I31: 5.8
A32: Основное мероприятие "Повышение эффективности управления муниципальной собственностью" | B32: 801 | C32: 01 | D32: 13 | E32: 01 2 02 00000 | G32: =G33+G35 -> 201.47 | H32: =H33+H35 -> 171.77 | I32: 29.7
A33: Организация мероприятия по содержанию муниципального имущества | B33: 801 | C33: 01 | D33: 13 | E33: 01 2 02 01300 | G33: =G34 -> 16.15 | I33: 16.2
A34: Закупка товаров, работ и услуг для обеспечения государственных (муниципальных) нужд | B34: 801 | C34: 01 | D34: 13 | E34: 01 2 02 01200 | F34: 200 | G34: 16.15 | I34: 16.2
A35: Организация мероприятия по содержанию муниципального имущества | B35: 801 | C35: 01 | D35: 13 | E35: 01 2 02 00000 | G35: =G36 -> 185.32 | H35: =H36 -> 171.77 | I35: 13.5
A36: Закупка товаров, работ и услуг для обеспечения государственных (муниципальных) нужд | B36: 801 | C36: 01 | D36: 13 | E36: 01 2 02 10200 | F36: 200 | G36: 185.32 | H36: 171.77 | I36: 13.5
A37: Основное мероприятие "Подержание и улучшение санитрарного и эстетического состояния территории" | B37: 801 | C37: 01 | D37: 13 | E37: 02 3 01 01100 | G37: =G38 -> 13.04 | H37: =H38 -> 10.80 | I37: 2.2
A38: Закупка товаров, работ и услуг для обеспечения государственных (муниципальных) нужд | B38: 801 | C38: 01 | D38: 13 | E38: 02 3 01 01100 | F38: 200 | G38: 13.04 | H38: 10.80 | I38: 2.2
A39: Обеспечение мероприятий пв области законодательства об административных правонарушениях | B39: 801 | C39: 01 | D39: 13 | E39: 99 0 У0 45300 | G39: =G40 -> 5.80 | I39: 5.8
A40: Закупка товаров, работ и услуг для обеспечения государственных (муниципальных) нужд | B40: 801 | C40: 01 | D40: 13 | E40: 99 0 У0 45300 | F40: 200 | G40: 5.80 | I40: 5.8
A41: НАЦИОНАЛЬНАЯ ОБОРОНА | B41: 801 | C41: 02 | D41: 00 | G41: =G42 -> 82.40 | H41: =H42 -> 65.04 | I41: 17.4
A42: Осуществление первичного воинского учета на территориях, где отсутствуют военные комиссариаты | B42: 801 | C42: 02 | D42: 03 | E42: 99 0 Л1 51180 | G42: =G43 -> 82.40 | H42: 65.04 | I42: 17.4
A43: Расходы на выплаты персоналу в целях обеспечения выполнения функций государственными (муниципальными) органами, казенными учреждениями, органами управления государственными внебюджетными фондами | B43: 801 | C43: 02 | D43: 03 | E43: 99 0 Л1 51180 | F43: 100 | G43: 82.40 | H43: 65.04 | I43: 17.4
A44: НАЦИОНАЛЬНАЯ ЭКОНОМИКА | B44: 801 | C44: 04 | D44: 00 | G44: =G45 -> 1335.70 | H44: 471.06 | I44: 864.6
A45: Дорожное хозяйство | B45: 801 | C45: 04 | D45: 09 | G45: =G46 -> 1335.70 | H45: =H46 -> 471.06 | I45: 864.6
A46: Основное мероприятие "Содержание и развитие дорожно-транспортного комплекса" | B46: 801 | C46: 04 | D46: 09 | E46: 02 1 01 0Д000 | G46: 1335.70 | H46: 471.06 | I46: 864.6
A47: Закупка товаров, работ и услуг для обеспечения государственных (муниципальных) нужд | B47: 801 | C47: 04 | D47: 09 | E47: 02 1 01 0Д000 | F47: 200 | G47: 1335.70 | H47: 471.06 | I47: 864.6
A48: ЖИЛИЩНО-КОММУНАЛЬНОЕ ХОЗЯЙСТВО | B48: 801 | C48: 05 | D48: 00 | G48: =G49+G52 -> 108.90 | H48: =H49+H52 -> 30.96 | I48: 77.9
A49: Коммунальное хозяйство | B49: 801 | C49: 05 | D49: 02 | G49: =G50 -> 97.70 | H49: =H50 -> 19.83 | I49: 77.9
A50: Основное мероприятие "Содержание инженерно -коммунальной инфраструктуры | B50: 801 | C50: 05 | D50: 02 | E50: 02 1 02 00000 | G50: =G51 -> 97.70 | H50: 19.83 | I50: 77.9
A51: Закупка товаров, работ и услуг для обеспечения государственных (муниципальных) нужд | B51: 801 | C51: 05 | D51: 02 | E51: 02 1 02 01400 | F51: 200 | G51: 97.70 | H51: 19.83 | I51: 77.9
A52: Благоустройство | B52: 801 | C52: 05 | D52: 03 | G52: =G53 -> 11.20 | H52: =H53 -> 11.13 | I52: 0.1
A53: Основное мероприятие "Подержание и улучшение санитрарного и эстетического состояния территории" | B53: 801 | C53: 05 | D53: 03 | E53: 02 3 01 10000 | G53: =G54 -> 11.20 | H53: =H54 -> 11.13 | I53: 0.1
A54: Закупка товаров, работ и услуг для обеспечения государственных (муниципальных) нужд | B54: 801 | C54: 05 | D54: 03 | E54: 02 3 01 10000 | F54: 200 | G54: 11.20 | H54: 11.13 | I54: 0.1
A55: Условно утверждаемые расходы | B55: 999 | C55: 99 | D55: 99 | E55: 99 9 99 99999 | I55: =G55-H55 -> 0.0
A56: ВСЕГО РАСХОДОВ | G56: =G6+G41+G44+G48 -> 3786.12 | H56: =H6+H41+H44+H48 -> 2007.23 | I56: 1778.9

Sheet 4
C1: Приложение 4 к Постановлению №13 от 03.11.2023 г « Об исполнении бюджета сельской администрации МО Каспинское сельское поселение за 3 квартал 2023 года."
A2: Источники финансирования бюджета муниципального образования Каспинское сельское поселение за 3 квартал 2023 год
B4: Код бюджетной классификации | C4: Утвержденные плановые назначения на 2023 год, сумма (тыс. рублей) | D4: Кассовое исполнение за 3 квартал 2023 год, сумма (тыс. рублей) | E4: Неисполненные назначение сумма (тыс.руб.)
A5: Дефицит бюджета | C5: =C6 -> 34.95 | D5: =D6 -> -699.59 | E5: =C5-D5 -> 734.55
A6: Источники внутреннего финансирования дефицита бюджета: | B6: 000 01 00 00 00 00 0000 000 | C6: =C8 -> 34.95 | D6: =D8 -> -699.59 | E6: =C6-D6 -> 734.55
A7: в том числе: | E7: 0
A8: Изменение остатков средств на счетах по учету средств бюджета | B8: 000 01 05 00 00 00 0000 000 | C8: 34.95 | D8: -699.59 | E8: 734.55
